bitfinex-derivatives/quotes_BTCF0:USTF0_20250417
["timestamp","ask_amount","ask_price","bid_price","bid_amount"]
[1744895607340,0.1391726,84703.0,84702.0,0.190894]
[1744895607543,0.1693726,84703.0,84702.0,0.190894]
[1744895609245,0.1693726,84703.0,84702.0,0.0728]
[1744895609428,0.1391726,84703.0,84702.0,0.0728]
[1744895611241,0.1391726,84703.0,84702.0,0.190894]
[1744895613953,0.00108,84703.0,84702.0,0.190894]
[1744895614450,0.001,84703.0,84702.0,0.190894]
[1744895614647,0.00108,84703.0,84702.0,0.190894]
[1744895614851,0.1191726,84703.0,84702.0,0.190894]
[1744895618454,0.1502726,84703.0,84702.0,0.190894]
[1744895621053,0.00108,84703.0,84702.0,0.190894]
[1744895621256,0.1191726,84703.0,84702.0,0.190894]
[1744895621453,0.1190926,84703.0,84702.0,0.190894]
[1744895621655,0.1191726,84703.0,84702.0,0.190894]
[1744895623362,0.1499726,84703.0,84702.0,0.190894]
[1744895624958,0.1803726,84703.0,84702.0,0.190894]
[1744895625360,0.1803726,84703.0,84702.0,0.0728]
[1744895625663,0.1803726,84703.0,84702.0,0.0403]
[1744895625855,0.1803726,84703.0,84702.0,0.008]
[1744895626755,0.1903726,84703.0,84702.0,0.126094]
[1744895626956,0.1903726,84703.0,84702.0,0.156694]
[1744895627356,0.1903726,84703.0,84702.0,0.0386]
[1744895627565,0.1903726,84703.0,84702.0,0.008]
[1744895628266,0.1903726,84703.0,84702.0,0.159394]
[1744895630365,0.1803726,84703.0,84702.0,0.159394]
[1744895633070,0.1803726,84703.0,84702.0,0.192594]
[1744895635375,0.1802926,84703.0,84702.0,0.192594]
[1744895635673,0.1803726,84703.0,84702.0,0.192594]
[1744895640984,0.1191726,84703.0,84702.0,0.192594]
[1744895641367,0.1190926,84703.0,84702.0,0.192594]
[1744895641570,0.1191726,84703.0,84702.0,0.192594]
[1744895642375,0.1190926,84703.0,84702.0,0.192594]
[1744895642576,0.1191726,84703.0,84702.0,0.192594]
[1744895643077,0.1191726,84703.0,84702.0,0.225694]
[1744895643980,0.1191726,84703.0,84702.0,0.586494]
[1744895644375,0.1517726,84703.0,84702.0,0.553394]
[1744895644679,0.1819726,84703.0,84702.0,0.553394]
[1744895648982,0.03368,84703.0,84702.0,0.553394]
[1744895649183,0.1191726,84703.0,84702.0,0.553394]
[1744895649681,0.001,84703.0,84702.0,0.553394]
[1744895649874,0.00108,84703.0,84702.0,0.553394]
[1744895650069,0.001,84703.0,84702.0,0.553394]
[1744895650271,0.00108,84703.0,84702.0,0.553394]
[1744895650672,0.00108,84703.0,84702.0,0.626714]
[1744895652288,0.1191726,84703.0,84702.0,0.626714]
[1744895653183,0.00108,84703.0,84702.0,0.626714]
[1744895656783,0.1191726,84703.0,84702.0,0.626714]
[1744895656987,0.1509726,84703.0,84702.0,0.626714]
[1744895659291,0.1509726,84703.0,84702.0,0.11462]
[1744895659490,0.1818726,84703.0,84702.0,0.0413]
[1744895659793,0.1818726,84703.0,84702.0,0.008]
[1744895661193,0.1818726,84703.0,84702.0,0.0404]
[1744895662589,0.01020439,86459.0,84702.0,0.0404]
[1744895662795,0.07332,84747.0,84717.0,0.3608]
[1744895663091,0.0590212,84740.0,84736.0,0.7216]
[1744895663283,0.1180438,84738.0,84737.0,0.032]
[1744895663491,0.1180452,84737.0,84736.0,0.7216]
[1744895663679,0.1580452,84737.0,84736.0,0.7216]
[1744895664288,0.1580452,84737.0,84736.0,0.7226]
[1744895664477,0.04,84737.0,84736.0,0.8706466]
[1744895664676,0.002,84740.0,84739.0,0.1180424]
[1744895664880,0.072,84740.0,84737.0,0.1180438]
[1744895665087,0.1201214,84740.0,84739.0,0.1180424]
[1744895665276,0.1180424,84739.0,84738.0,0.1480438]
[1744895665477,0.07,84739.0,84738.0,0.1480438]
[1744895665790,0.1880424,84739.0,84738.0,0.1480438]
[1744895666392,0.1880424,84739.0,84729.0,0.090328]
[1744895666393,0.34,84739.0,84729.0,0.3608]
[1744895666590,0.1180549,84730.0,84729.0,0.3808]
[1744895666888,0.4513749,84730.0,84729.0,0.3608]
[1744895667095,0.7013749,84730.0,84729.0,0.3109]
[1744895667278,0.7013749,84730.0,84729.0,0.2917669]
[1744895667478,0.1180563,84729.0,84725.0,0.02]
[1744895667695,0.0590309,84725.0,84715.0,0.18048215]
[1744895667990,0.1180745,84716.0,84715.0,0.18048215]
[1744895668289,0.4732345,84716.0,84715.0,0.18048215]
[1744895668890,0.5371345,84716.0,84715.0,0.18248215]
[1744895669392,0.7871345,84716.0,84715.0,0.15091135]
[1744895669786,0.7871345,84716.0,84715.0,0.004]
[1744895669989,0.7871345,84716.0,84715.0,0.008]
[1744895670478,0.7881345,84716.0,84715.0,0.004]
[1744895671786,0.1180786,84713.0,84712.0,0.3608]
[1744895671987,0.4180786,84713.0,84712.0,0.3608]
[1744895672489,0.4181586,84713.0,84712.0,0.3608]
[1744895672890,0.4181586,84713.0,84712.0,0.3628]
[1744895673091,0.4181586,84713.0,84712.0,0.3638]
[1744895673293,0.8295586,84713.0,84712.0,0.3638]
[1744895673689,0.1180842,84709.0,84708.0,0.02]
[1744895673897,0.1180856,84708.0,84707.0,0.0017441]
[1744895674196,0.1180912,84704.0,84703.0,0.02]
[1744895674399,0.0590466,84703.0,84699.0,0.02008]
[1744895674584,0.1180968,84700.0,84699.0,8e-05]
[1744895674785,0.1580968,84700.0,84699.0,8e-05]
[1744895675096,0.5694968,84700.0,84699.0,8e-05]
[1744895675401,0.1181023,84696.0,84695.0,0.02]
[1744895675699,0.1181051,84694.0,84693.0,0.01378265]
[1744895676003,0.4081051,84694.0,84693.0,0.01378265]
[1744895676392,0.4717051,84694.0,84693.0,0.01378265]
[1744895677102,0.4727051,84694.0,84693.0,0.01215713]
[1744895677494,0.4727051,84694.0,84693.0,0.01207713]
[1744895677797,0.4727051,84694.0,84693.0,0.01215713]
[1744895678190,0.4727051,84694.0,84693.0,0.01515713]
[1744895678191,0.4737051,84694.0,84693.0,0.01515713]
[1744895678391,0.4737051,84694.0,84693.0,0.01507713]
[1744895678592,0.4737051,84694.0,84693.0,0.01515713]
[1744895679294,0.8851051,84694.0,84693.0,0.01515713]
[1744895680803,0.8851051,84694.0,84693.0,0.04635713]
[1744895683809,0.8851051,84694.0,84693.0,0.01515713]
[1744895684994,0.8851051,84694.0,84693.0,3e-08]
[1744895684995,1.2459051,84694.0,84693.0,3e-08]
[1744895685197,0.1181079,84692.0,84691.0,8e-08]
[1744895685502,0.4081079,84692.0,84691.0,8e-08]
[1744895685700,0.7936,84692.0,84687.0,0.02]
[1744895685899,0.1181191,84684.0,84683.0,0.00889094]
[1744895686103,0.1181191,84684.0,84679.0,0.01]
[1744895686104,0.1181219,84682.0,84679.0,0.01]
[1744895686310,0.2281219,84682.0,84677.0,0.01]
[1744895686808,0.2901219,84682.0,84678.0,0.0301]
[1744895688905,0.2931219,84682.0,84678.0,0.0301]
[1744895689594,0.2931219,84682.0,84679.0,0.00877751]
[1744895690298,0.2614219,84682.0,84679.0,0.00877751]
[1744895690993,0.6425219,84682.0,84679.0,0.00877751]
[1744895691194,0.6425219,84682.0,84680.0,0.0327]
[1744895691599,0.6425219,84682.0,84681.0,0.3938]
[1744895692109,0.6756219,84682.0,84681.0,0.3938]
[1744895694713,0.6425219,84682.0,84681.0,0.3938]
[1744895703125,0.6425219,84682.0,84681.0,0.4258]
[1744895703624,0.6730219,84682.0,84681.0,0.4258]
[1744895706121,0.6425219,84682.0,84681.0,0.4258]
[1744895707925,0.6754219,84682.0,84681.0,0.4258]
[1744895709627,0.6425219,84682.0,84681.0,0.4258]
[1744895709827,0.6285619,84682.0,84681.0,0.5439233]
[1744895710025,0.6285619,84682.0,84681.0,0.4258]
[1744895710438,0.6285619,84682.0,84681.0,0.4585]
[1744895711334,0.6385619,84682.0,84681.0,0.4585]
[1744895712742,0.5625219,84682.0,84681.0,0.4585]
[1744895713040,0.6691619,84682.0,84681.0,0.4585]
[1744895714241,0.2577619,84682.0,84681.0,0.4585]
[1744895717538,0.2577619,84682.0,84681.0,0.3608]
[1744895717753,0.2904619,84682.0,84681.0,0.3608]
[1744895717935,0.2144219,84682.0,84681.0,0.3608]
[1744895718134,0.2577619,84682.0,84681.0,0.36088]
[1744895718443,0.2577619,84682.0,84681.0,0.39228]
[1744895718937,0.1817219,84682.0,84681.0,0.39228]
[1744895719141,0.1511219,84682.0,84681.0,0.39228]
[1744895719438,0.1181205,84683.0,84682.0,0.0590609]
[1744895719945,0.1181205,84683.0,84682.0,0.0644]
[1744895720539,0.1599205,84683.0,84682.0,0.0644]
[1744895720937,0.1609205,84683.0,84682.0,0.0644]
[1744895721143,0.1609205,84683.0,84682.0,0.0654]
[1744895725847,0.1291205,84683.0,84682.0,0.1835219]
[1744895726144,0.1291205,84683.0,84682.0,0.0654]
[1744895726855,0.1593205,84683.0,84682.0,0.0654]
[1744895729949,0.1593205,84683.0,84682.0,0.001]
[1744895730151,0.1919205,84683.0,84682.0,0.001]
[1744895730348,0.2672805,84683.0,84682.0,0.001]
[1744895730747,0.2672805,84683.0,84682.0,0.00108]
[1744895732354,0.2672805,84683.0,84682.0,0.001]
[1744895732557,0.2672805,84683.0,84682.0,0.00108]
[1744895733446,0.2672805,84683.0,84682.0,0.001]
[1744895733642,0.2672805,84683.0,84682.0,0.00108]
[1744895736048,0.2692805,84683.0,84682.0,0.00208]
[1744895736456,0.2692805,84683.0,84682.0,0.00108]
[1744895736660,0.2712805,84683.0,84682.0,0.00108]
[1744895737255,0.2682805,84683.0,84682.0,8e-05]
[1744895737459,0.0590642,84678.0,84674.0,0.000108]
[1744895737756,0.118133,84674.0,84673.0,5e-08]
[1744895738054,0.1181512,84661.0,84660.0,0.3608]
[1744895738258,0.1181554,84658.0,84657.0,0.23987604]
[1744895738459,0.3781554,84658.0,84657.0,0.24880381]
[1744895738757,0.4410554,84658.0,84657.0,0.24888381]
[1744895739850,0.4410554,84658.0,84657.0,0.23976804]
[1744895740045,0.4410554,84658.0,84657.0,0.23984804]
[1744895740248,0.4410554,84658.0,84657.0,8e-05]
[1744895740452,0.4420554,84658.0,84657.0,0.00408]
[1744895743048,0.4853154,84658.0,84657.0,0.00408]
[1744895743357,0.4099554,84658.0,84657.0,0.00408]
[1744895743559,0.8967154,84658.0,84657.0,0.00408]
[1744895744061,0.8213554,84658.0,84657.0,0.03668]
[1744895744366,0.8967154,84658.0,84657.0,0.03668]
[1744895745857,0.8213554,84658.0,84657.0,0.0366]
[1744895746260,0.8967154,84658.0,84657.0,0.0366]
[1744895751666,0.8213554,84658.0,84657.0,0.0366]
[1744895751862,0.8967554,84658.0,84657.0,0.1547567]
[1744895752062,0.7905554,84658.0,84657.0,0.1547567]
[1744895752264,0.8659554,84658.0,84657.0,0.1547567]
[1744895752863,0.8659554,84658.0,84657.0,0.1872567]
[1744895754271,0.7905554,84658.0,84657.0,0.1872567]
[1744895755070,0.8659554,84658.0,84657.0,0.1872567]
[1744895755673,0.7905554,84658.0,84657.0,0.1872567]
[1744895758159,0.7905554,84658.0,84657.0,0.1862567]
[1744895758471,0.7905554,84658.0,84657.0,0.1852567]
[1744895758669,0.8215554,84658.0,84657.0,0.1832567]
[1744895758873,0.8225554,84658.0,84657.0,0.0671]
[1744895759272,0.8215554,84658.0,84657.0,0.0651]
[1744895759466,0.8225554,84658.0,84657.0,0.0671]
[1744895760874,0.8225554,84658.0,84657.0,0.1852567]
[1744895761072,0.8215554,84658.0,84657.0,0.1842567]
[1744895761573,0.8215554,84658.0,84657.0,0.1832567]
[1744895761780,0.8215554,84658.0,84657.0,0.1842567]
[1744895763978,0.8215554,84658.0,84657.0,0.0661]
[1744895764669,0.8520554,84658.0,84657.0,0.0661]
[1744895764871,0.9270954,84658.0,84657.0,0.06618]
[1744895765278,0.9280954,84658.0,84657.0,0.06618]
[1744895765679,0.9280954,84658.0,84657.0,0.06518]
[1744895765978,0.9290954,84658.0,84657.0,0.06518]
[1744895766369,0.9280954,84658.0,84657.0,0.06518]
[1744895766571,0.9290954,84658.0,84657.0,0.1833367]
[1744895766773,0.8985954,84658.0,84657.0,0.1833367]
[1744895767380,0.8225554,84658.0,84657.0,0.1833367]
[1744895767584,0.8975954,84658.0,84657.0,0.1833367]
[1744895767986,0.8975954,84658.0,84657.0,0.06518]
[1744895768984,0.8975954,84658.0,84657.0,0.42598]
[1744895769691,0.8975954,84658.0,84657.0,0.5441367]
[1744895770082,0.4861954,84658.0,84657.0,0.5441367]
[1744895770987,0.4861954,84658.0,84657.0,0.1833367]
[1744895771176,0.4861954,84658.0,84657.0,0.5441367]
[1744895771487,0.4861954,84658.0,84657.0,0.1833367]
[1744895771685,0.4861954,84658.0,84657.0,0.5441367]
[1744895772787,0.4861954,84658.0,84657.0,0.42598]
[1744895773484,0.4861954,84658.0,84657.0,0.1833367]
[1744895773689,0.4861954,84658.0,84657.0,0.42598]
[1744895773890,0.4861954,84658.0,84657.0,0.5441367]
[1744895774388,0.4851954,84658.0,84657.0,0.42598]
[1744895774583,0.4861954,84658.0,84657.0,0.42598]
[1744895774783,0.5168954,84658.0,84657.0,0.42598]
[1744895776375,0.4861954,84658.0,84657.0,0.42598]
[1744895776790,0.4111554,84658.0,84657.0,0.5441367]
[1744895777092,0.4861954,84658.0,84657.0,0.5441367]
[1744895777994,0.4871954,84658.0,84657.0,0.5441367]
[1744895778184,0.4121554,84658.0,84657.0,0.42598]
[1744895778490,0.4861954,84658.0,84657.0,0.42598]
[1744895778888,0.4851954,84658.0,84657.0,0.42598]
[1744895779089,0.4861954,84658.0,84657.0,0.42598]
[1744895779683,0.4861954,84658.0,84657.0,0.5441367]
[1744895779887,0.4861954,84658.0,84657.0,0.42598]
[1744895781190,0.5192954,84658.0,84657.0,0.42598]
[1744895782495,0.5202954,84658.0,84657.0,0.5441367]
[1744895782696,0.5192954,84658.0,84657.0,0.42598]
[1744895783689,0.5182954,84658.0,84657.0,0.42598]
[1744895784000,0.4861954,84658.0,84657.0,0.42598]
[1744895784184,0.4861954,84658.0,84657.0,0.39338]
[1744895784494,0.5175954,84658.0,84657.0,0.39338]
[1744895785092,0.5175954,84658.0,84657.0,0.3933]
[1744895785284,0.4101554,84658.0,84657.0,0.39338]
[1744895785485,0.4871954,84658.0,84657.0,0.5115367]
[1744895785687,0.4871954,84658.0,84657.0,0.39338]
[1744895785986,0.4861954,84658.0,84657.0,0.39338]
[1744895786790,0.4861954,84658.0,84657.0,0.42638]
[1744895787701,0.5174954,84658.0,84657.0,0.42638]
[1744895789200,0.4424554,84658.0,84657.0,0.42638]
[1744895789698,0.5174954,84658.0,84657.0,0.42638]
[1744895790799,0.4861954,84658.0,84657.0,0.42638]
[1744895792298,0.4861954,84658.0,84657.0,0.39338]
[1744895792605,0.5168954,84658.0,84657.0,1e-07]
[1744895793202,0.5178954,84658.0,84657.0,1e-07]
[1744895793697,0.1181595,84655.0,84654.0,0.02]
[1744895793900,0.2090798,84655.0,84652.0,0.0628]
[1744895794201,0.1181623,84653.0,84652.0,0.0628]
[1744895794386,0.1381623,84653.0,84652.0,0.0628]
[1744895794586,0.1696623,84653.0,84652.0,0.0628]
[1744895795797,0.2017623,84653.0,84652.0,0.0628]
[1744895796095,0.2027623,84653.0,84652.0,0.0628]
[1744895797896,0.2027623,84653.0,84649.0,0.31735336]
[1744895797897,0.0590819,84652.0,84649.0,0.31735336]
[1744895798097,0.1181679,84649.0,84648.0,0.020108]
[1744895798291,0.1181749,84644.0,84643.0,0.0977]
[1744895798502,0.3626149,84644.0,84643.0,0.0977]
[1744895798703,0.4267149,84644.0,84643.0,0.09778]
[1744895799502,0.4267149,84644.0,84643.0,0.09978]
[1744895799699,0.4277149,84644.0,84643.0,0.09978]
[1744895800101,0.4277149,84644.0,84643.0,0.01077205]
[1744895801295,0.4277149,84644.0,84643.0,0.04217205]
[1744895801696,0.4277149,84644.0,84643.0,1e-07]
[1744895802201,0.4277149,84644.0,84643.0,8.01e-05]
[1744895804312,0.4277149,84644.0,84643.0,0.0942801]
[1744895810314,0.4297149,84644.0,84643.0,0.0942801]
[1744895810611,0.4297149,84644.0,84643.0,0.09428]
[1744895810813,0.3997149,84644.0,84643.0,0.09428]
[1744895811117,0.4007149,84644.0,84643.0,0.09428]
[1744895811306,0.4017149,84644.0,84643.0,0.09428]
[1744895812115,0.3272749,84644.0,84643.0,0.09428]
[1744895812313,0.4017149,84644.0,84643.0,0.09428]
[1744895812510,0.4007149,84644.0,84643.0,0.09428]
[1744895813213,0.3977149,84644.0,84643.0,0.09428]
[1744895813515,0.4007149,84644.0,84643.0,0.09428]
[1744895815721,0.3262749,84644.0,84643.0,0.09428]
[1744895816021,0.4007149,84644.0,84643.0,0.09428]
[1744895819514,0.7976149,84644.0,84643.0,0.0156518]
[1744895819719,0.8346149,84644.0,84643.0,0.0157318]
[1744895821020,0.8376149,84644.0,84643.0,0.0157318]
[1744895823223,1.0338149,84644.0,84643.0,0.0157318]
[1744895823423,0.8006149,84644.0,84643.0,0.0516318]
[1744895823826,0.8006149,84644.0,84643.0,0.0157318]
[1744895825125,0.68244,84644.0,84631.0,0.00890345]
[1744895825327,0.0590944,84634.0,84629.0,0.0697]
[1744895825528,0.1181944,84630.0,84629.0,0.0697]
[1744895825715,0.1581944,84630.0,84629.0,0.0697]
[1744895825916,0.1937944,84630.0,84629.0,0.0697]
[1744895826837,0.1957944,84630.0,84629.0,0.0697]
[1744895827034,0.1967944,84630.0,84629.0,0.0697]
[1744895828739,0.1967944,84630.0,84629.0,0.07876333]
[1744895828943,0.1977944,84630.0,84629.0,0.07876333]
[1744895829445,0.1977944,84630.0,84607.0,0.00026572]
[1744895829446,0.0796,84630.0,84607.0,0.00026572]
[1744895829645,0.118214,84616.0,84615.0,1e-08]
[1744895829861,0.302454,84616.0,84615.0,1e-08]
[1744895830040,0.412054,84616.0,84615.0,1e-08]
[1744895830235,0.412054,84616.0,84615.0,8.001e-05]
[1744895830435,0.412054,84616.0,84615.0,1e-08]
[1744895830940,0.413054,84616.0,84615.0,0.00100001]
[1744895831141,0.413054,84616.0,84615.0,0.00108001]
[1744895831646,0.376954,84616.0,84615.0,0.00108001]
[1744895831847,0.302714,84616.0,84615.0,0.00108001]
[1744895832047,0.376994,84616.0,84615.0,0.00108001]
[1744895832356,0.376994,84616.0,84615.0,1e-08]
[1744895832650,0.1182266,84607.0,84606.0,0.0349]
[1744895832838,0.1482266,84607.0,84606.0,0.4686]
[1744895833040,0.1831266,84607.0,84606.0,0.4686]
[1744895833251,0.2574066,84607.0,84606.0,0.4686]
[1744895834056,0.2584066,84607.0,84606.0,0.4696]
[1744895834648,0.118235,84601.0,84600.0,0.1]
[1744895834859,0.148235,84601.0,84600.0,0.1]
[1744895835060,0.220935,84601.0,84600.0,0.1]
[1744895835354,0.220935,84601.0,84600.0,0.10008]
[1744895835556,0.220935,84601.0,84600.0,0.17048]
[1744895835949,0.222515,84601.0,84600.0,0.1793225]
[1744895836155,0.138235,84601.0,84600.0,0.1793225]
[1744895837457,0.139235,84601.0,84600.0,0.1792425]
[1744895837651,0.139235,84601.0,84600.0,0.1793225]
[1744895837858,0.149235,84601.0,84600.0,0.17048]
[1744895838157,0.259015,84601.0,84600.0,0.17048]
[1744895838548,0.295515,84601.0,84600.0,0.1704]
[1744895838747,0.295515,84601.0,84600.0,0.17048]
[1744895839262,0.295515,84601.0,84600.0,0.10008]
[1744895839442,0.295515,84601.0,84600.0,0.1]
[1744895839753,0.295515,84601.0,84600.0,0.10008]
[1744895840461,0.259015,84601.0,84600.0,0.10008]
[1744895840643,0.149235,84601.0,84600.0,0.10008]
[1744895840848,0.259515,84601.0,84600.0,0.10008]
[1744895846562,0.185235,84601.0,84600.0,0.10008]
[1744895848561,0.149235,84601.0,84600.0,0.10008]
[1744895848766,0.185935,84601.0,84600.0,0.10008]
[1744895849962,0.220735,84601.0,84600.0,0.10008]
[1744895850455,0.0591217,84595.0,84589.0,0.00508337]
[1744895850766,0.1182503,84590.0,84589.0,0.03958337]
[1744895850965,0.1482503,84590.0,84589.0,0.03958337]
[1744895851155,0.1482503,84590.0,84589.0,0.00516337]
[1744895851363,0.1482503,84590.0,84589.0,0.00508337]
[1744895851663,0.1482503,84590.0,84589.0,0.00516337]
[1744895851965,0.2185503,84590.0,84589.0,0.00516337]
[1744895852462,0.2185503,84590.0,84589.0,0.00508337]
[1744895852667,0.2185503,84590.0,84589.0,7e-08]
[1744895852962,0.1182573,84585.0,84584.0,0.02]
[1744895853165,0.1182755,84572.0,84571.0,0.18075319]
[1744895853354,0.1382755,84572.0,84571.0,0.18075319]
[1744895853668,0.1382755,84572.0,84571.0,0.25038739]
[1744895854052,0.1744755,84572.0,84571.0,0.25038739]
[1744895854667,0.1754755,84572.0,84571.0,0.06978]
[1744895854863,0.1764755,84572.0,84571.0,0.1880569]
[1744895855663,0.1764755,84572.0,84571.0,0.06978]
[1744895856462,0.1402755,84572.0,84571.0,0.06978]
[1744895856857,0.1771755,84572.0,84571.0,0.06978]
[1744895858777,0.0589,84572.0,84571.0,0.06978]
[1744895859072,0.1402755,84572.0,84571.0,0.5488569]
[1744895859768,0.1402755,84572.0,84571.0,0.43058]
[1744895859963,0.1402755,84572.0,84571.0,0.4305]
[1744895859964,0.1771755,84572.0,84571.0,0.4305]
[1744895860163,0.1771755,84572.0,84571.0,0.43058]
[1744895861369,0.1771755,84572.0,84571.0,0.5488569]
[1744895862870,0.1771755,84572.0,84571.0,0.1880569]
[1744895863076,0.1771755,84572.0,84571.0,0.5488569]
[1744895864373,0.1771755,84572.0,84571.0,0.43058]
[1744895865071,0.1771755,84572.0,84571.0,0.06978]
[1744895865369,0.2242755,84572.0,84571.0,0.06978]
[1744895865580,0.1502755,84572.0,84571.0,0.43058]
[1744895865761,0.1852755,84572.0,84571.0,0.43058]
[1744895866271,0.1752755,84572.0,84571.0,0.43058]
[1744895866667,0.1742755,84572.0,84571.0,0.43058]
[1744895869074,0.1742755,84572.0,84571.0,0.5488569]
[1744895870062,0.1742755,84572.0,84571.0,0.43058]
[1744895870262,0.2089755,84572.0,84571.0,0.43058]
[1744895870463,0.2089755,84572.0,84571.0,0.5488569]
[1744895870768,0.1742755,84572.0,84571.0,0.5488569]
[1744895871275,0.1773978,84582.0,84581.0,0.1182563]
[1744895871466,0.1773978,84582.0,84581.0,0.4790563]
[1744895872168,0.23653,84582.0,84581.0,0.4790563]
[1744895872365,0.0359,84584.0,84583.0,0.1182601]
[1744895872665,0.11842837,84590.0,84589.0,0.1182517]
[1744895872880,0.17755427,84590.0,84589.0,0.1878517]
[1744895873063,0.23668017,84590.0,84589.0,0.0696]
[1744895873269,0.27258017,84590.0,84589.0,1.5696]
[1744895874082,0.27258017,84590.0,84584.0,0.02]
[1744895874083,0.1182573,84585.0,84584.0,0.02]
[1744895874385,0.1182643,84580.0,84579.0,0.3808]
[1744895874672,0.1182643,84580.0,84579.0,0.3608]
[1744895875065,0.1893643,84580.0,84579.0,0.3608]
[1744895875678,0.1182713,84575.0,84574.0,0.020108]
[1744895875874,0.059135,84576.0,84573.0,0.00017727]
[1744895876074,0.1902727,84574.0,84573.0,0.36097727]
[1744895876579,0.2246727,84574.0,84573.0,0.36097727]
[1744895877977,0.2356727,84574.0,84573.0,0.00017727]
[1744895879181,0.2356727,84574.0,84573.0,0.00025727]
[1744895879580,0.2356727,84574.0,84573.0,7e-08]
[1744895879772,0.1182853,84565.0,84564.0,0.000108]
[1744895880083,0.1182867,84564.0,84558.0,0.02]
[1744895880274,0.2209867,84564.0,84557.0,0.20060739]
[1744895880877,0.2959067,84564.0,84563.0,4e-08]
[1744895881080,0.2959067,84564.0,84563.0,8.004e-05]
[1744895881278,0.1182951,84558.0,84557.0,0.20060739]
[1744895881488,0.3082951,84558.0,84557.0,0.18060739]
[1744895881671,0.4153951,84558.0,84557.0,0.18060739]
[1744895881980,0.4153951,84558.0,84557.0,0.18068739]
[1744895882382,0.4153951,84558.0,84557.0,0.07042873]
[1744895882584,0.6853951,84558.0,84557.0,8.003e-05]
[1744895882797,0.6853951,84558.0,84557.0,3e-08]
[1744895882798,0.4353951,84558.0,84557.0,3e-08]
[1744895882972,0.1183018,84554.0,84553.0,0.1183014]
[1744895883175,0.1183021,84553.0,84552.0,0.27820986]
[1744895883382,0.1534021,84553.0,84552.0,0.27820986]
[1744895883583,0.1534021,84553.0,84552.0,0.39651336]
[1744895883785,0.001,84558.0,84553.0,0.0591507]
[1744895883975,0.0345,84567.0,84566.0,0.1182839]
[1744895884178,0.0345,84567.0,84566.0,0.4790839]
[1744895884583,0.0345,84567.0,84566.0,0.5140839]
[1744895884778,0.1527825,84567.0,84566.0,0.5140839]
[1744895885388,0.0345,84567.0,84566.0,0.5140839]
[1744895885595,0.1527825,84567.0,84566.0,0.5140839]
[1744895885983,0.1527825,84567.0,84566.0,0.5141639]
[1744895886177,0.1537825,84567.0,84566.0,0.5141639]
[1744895886988,0.1537825,84567.0,84566.0,0.39588]
[1744895887185,0.1547825,84567.0,84566.0,0.39588]
[1744895891193,0.1904825,84567.0,84566.0,0.39588]
[1744895891596,0.1904825,84567.0,84566.0,0.5141639]
[1744895891790,0.1904825,84567.0,84566.0,0.49159145]
[1744895892393,0.1904825,84567.0,84566.0,0.37330755]
[1744895894601,0.1904825,84567.0,84566.0,0.36088]
[1744895894994,0.1904825,84567.0,84566.0,0.4791639]
[1744895896100,0.1904825,84567.0,84566.0,0.5133639]
[1744895896399,0.1547825,84567.0,84566.0,0.5133639]
[1744895898599,0.1547825,84567.0,84566.0,0.4791639]
[1744895898801,0.1890825,84567.0,84566.0,0.36088]
[1744895899003,0.1890825,84567.0,84566.0,0.3608]
[1744895899205,0.1890825,84567.0,84566.0,0.36088]
[1744895899503,0.1890825,84567.0,84566.0,0.4791639]
[1744895899804,0.1890825,84567.0,84566.0,0.36088]
[1744895901190,0.1890825,84567.0,84566.0,0.4791639]
[1744895901592,0.1890825,84567.0,84566.0,0.5506639]
[1744895905901,0.1890825,84567.0,84566.0,0.5138639]
[1744895906104,0.2250825,84567.0,84566.0,0.5138639]
[1744895906297,0.2250825,84567.0,84566.0,0.2910836]
[1744895906298,0.2650825,84567.0,84566.0,0.2910836]
[1744895906497,1.9816,84567.0,84558.0,0.02]
[1744895906699,1.9816,84567.0,84530.0,0.13645562]
[1744895906700,0.1183329,84531.0,84530.0,0.13645562]
[1744895906897,0.3234129,84531.0,84530.0,0.04289552]
[1744895907103,0.1183413,84525.0,84512.0,0.0745]
[1744895907406,0.1483413,84525.0,84517.0,0.3608]
[1744895907901,0.1483413,84525.0,84518.0,0.0745]
[1744895908505,0.1483413,84525.0,84524.0,0.46238582]
[1744895909098,0.02,84525.0,84524.0,0.94152852]
[1744895909306,0.02,84525.0,84524.0,0.82318582]
[1744895909612,0.021,84525.0,84524.0,0.94152852]
[1744895909799,0.1393413,84525.0,84524.0,0.82318582]
[1744895910401,0.1493413,84525.0,84524.0,0.46230582]
[1744895910805,0.1493413,84525.0,84524.0,0.46238582]
[1744895911817,0.1493413,84525.0,84524.0,8e-05]
[1744895913304,0.1513413,84525.0,84524.0,8e-05]
[1744895914116,0.1533413,84525.0,84524.0,8e-05]
[1744895914711,0.1869413,84525.0,84524.0,8e-05]
[1744895915012,0.1183539,84516.0,84511.0,0.00508806]
[1744895915213,0.1183581,84513.0,84512.0,0.0724]
[1744895915511,0.1483581,84513.0,84512.0,0.0724]
[1744895916213,0.1383581,84513.0,84512.0,0.0724]
[1744895917118,0.1683581,84513.0,84512.0,0.0724]
[1744895917506,0.1693581,84513.0,84512.0,0.0724]
[1744895918104,0.1703581,84513.0,84512.0,0.0724]
[1744895918319,0.1403581,84513.0,84512.0,0.4332]
[1744895923003,0.022,84513.0,84512.0,0.4332]
[1744895923417,0.1403581,84513.0,84512.0,0.4332]
[1744895924920,0.1393581,84513.0,84512.0,0.4332]
[1744895925130,0.1413581,84513.0,84512.0,0.4332]
[1744895925606,0.1403581,84513.0,84512.0,0.4332]
[1744895926118,0.1393581,84513.0,84512.0,0.4332]
[1744895926419,0.1403581,84513.0,84512.0,0.4332]
[1744895926821,0.1203581,84513.0,84512.0,0.4332]
[1744895927019,0.1193581,84513.0,84512.0,0.4332]
[1744895927220,0.1203581,84513.0,84512.0,0.4332]
[1744895928626,0.002,84513.0,84512.0,0.4332]
[1744895929022,0.0591675,84530.0,84512.0,0.4332]
[1744895929225,0.0591679,84529.0,84520.0,0.60354556]
[1744895929526,0.1183371,84528.0,84527.0,0.3608]
[1744895929727,0.1183371,84528.0,84527.0,1.8608]
[1744895931326,0.1193371,84528.0,84527.0,1.8608]
[1744895932014,0.1203371,84528.0,84527.0,1.8608]
[1744895932419,0.1193371,84528.0,84527.0,1.8608]
[1744895933031,0.1203371,84528.0,84527.0,1.8608]
[1744895934134,0.1193371,84528.0,84527.0,1.9791385]
[1744895934720,0.1183371,84528.0,84527.0,1.9801385]
[1744895934922,0.1183356,84530.0,84529.0,0.1775021]